bitfinex-derivatives/quotes_SOLF0:USTF0_20260304
["timestamp","ask_amount","ask_price","bid_price","bid_amount"]
[1772650977267,6.39228719,92.385,92.281,19.80277091]
[1772650977268,6.39228719,92.385,92.299,13.22632636]
[1772650978075,6.39228719,92.385,92.303,13.22632636]
[1772650978466,6.39228719,92.385,92.333,9.743]
[1772650979066,6.37703132,92.4,92.325,9.9159331]
[1772650980373,151.326,92.483,92.275,151.666]
[1772650980374,6.37898261,92.437,92.357,9.9159331]
[1772650980570,6.37898261,92.437,92.306,151.615]
[1772650980571,6.37898261,92.437,92.36,9.9159331]
[1772650980771,6.37898261,92.437,92.363,9.74]
[1772650981571,6.37898261,92.426,92.372,9.739]
[1772650982078,6.37898261,92.426,92.319,19.80277091]
[1772650982079,6.33847877,92.407,92.347,9.742]
[1772650982467,6.33847877,92.407,92.335,9.9159331]
[1772650982668,6.33847877,92.407,92.341,9.9159331]
[1772650983073,6.33847877,92.407,92.364,9.74]
[1772650983272,6.33847877,92.427,92.364,9.74]
[1772650985071,6.36215021,92.424,92.364,9.74]
[1772650985770,9.734,92.422,92.364,9.74]
[1772650986075,6.36215021,92.421,92.364,9.74]
[1772650988374,6.39797311,92.419,92.364,9.74]
[1772650988975,6.39797311,92.437,92.376,9.739]
[1772650989471,6.39797311,92.435,92.376,9.739]
[1772650990276,6.39797311,92.435,92.326,19.489]
[1772650990277,6.39797311,92.435,92.386,9.738]
[1772650990478,6.39797311,92.435,92.332,26.44821801]
[1772650990479,13.41995389,92.532,92.395,9.9159331]
[1772650990673,13.41995389,92.532,92.363,151.521]
[1772650990674,11.4150158,92.586,92.449,9.86333915]
[1772650990881,11.4150158,92.586,92.387,151.482]
[1772650990884,18.11290596,92.591,92.469,9.729]
[1772650991172,18.11290596,92.591,92.495,9.7901904]
[1772650991374,18.11290596,92.591,92.486,9.79029065]
[1772650991575,0.59790596,92.591,92.498,151.3]
[1772650991782,0.59790596,92.591,92.487,9.79029065]
[1772650991983,0.59790596,92.591,92.482,9.79029065]
[1772650992172,0.59790596,92.591,92.477,9.79029065]
[1772650992376,0.59790596,92.591,92.464,9.73]
[1772650992676,0.59790596,92.591,92.449,9.79029065]
[1772650992880,9.719,92.565,92.422,9.734]
[1772650993074,151.17,92.579,92.422,9.734]
[1772650993273,151.17,92.579,92.371,10.99365883]
[1772650993274,151.195,92.563,92.404,9.79029065]
[1772650993469,151.154,92.588,92.395,9.79029065]
[1772650993674,9.40188154,92.573,92.404,9.79029065]
[1772650993873,9.721,92.546,92.404,9.736]
[1772650994080,9.28149529,92.534,92.404,9.79029065]
[1772650994273,9.28149529,92.579,92.388,302.962]
[1772650994478,9.28149529,92.579,92.427,9.79029065]
[1772650994676,9.28149529,92.569,92.403,9.79029065]
[1772650994872,9.28149529,92.559,92.402,9.79029065]
[1772650995073,9.28149529,92.534,92.386,9.79029065]
[1772650995278,9.28149529,92.534,92.386,151.484]
[1772650995580,9.28149529,92.534,92.385,9.79029065]
[1772650995581,9.28149529,92.569,92.421,9.79029065]
[1772650995774,9.28149529,92.569,92.418,9.79029065]
[1772650996183,9.28149529,92.569,92.414,9.79029065]
[1772650996579,9.18165304,92.566,92.42,9.734]
[1772650996780,9.18165304,92.55,92.392,9.79029065]
[1772650997076,9.723,92.528,92.375,9.79029065]
[1772650997282,9.18165304,92.527,92.401,9.736]
[1772650998279,9.723,92.526,92.401,9.736]
[1772650998480,9.14732181,92.525,92.401,9.736]
[1772650998779,9.14732181,92.525,92.397,151.466]
[1772650998983,9.14732181,92.525,92.403,9.79029065]
[1772650999179,9.14732181,92.525,92.436,9.732]
[1772650999978,9.14732181,92.525,92.455,9.73]
[1772651000177,9.15224999,92.577,92.432,151.408]
[1772651000381,9.15224999,92.577,92.434,151.404]
[1772651000581,9.15224999,92.577,92.488,9.727]
[1772651000785,9.15224999,92.577,92.468,151.35]
[1772651001080,9.15224999,92.655,92.474,151.339]
[1772651001280,9.15224999,92.638,92.488,151.316]
[1772651001483,9.15224999,92.638,92.466,151.353]
[1772651001780,9.15224999,92.638,92.471,151.345]
[1772651002083,9.15224999,92.638,92.46,151.362]
[1772651002084,9.15224999,92.634,92.488,151.317]
[1772651002275,9.15224999,92.634,92.481,151.328]
[1772651002475,9.23851547,92.617,92.481,151.328]
[1772651002678,9.23851547,92.617,92.533,9.722]
[1772651002874,9.23851547,92.617,92.479,9.79029065]
[1772651003086,9.23851547,92.617,92.477,151.334]
[1772651003285,9.23851547,92.617,92.518,9.724]
[1772651003685,1.8800242,92.66,92.47,151.347]
[1772651003686,9.23851547,92.614,92.47,151.347]
[1772651003984,9.23851547,92.635,92.493,151.308]
[1772651004181,9.23851547,92.635,92.518,151.268]
[1772651004381,9.23851547,92.635,92.559,9.72]
[1772651004578,9.23851547,92.635,92.486,9.79029065]
[1772651004783,9.3259686,92.632,92.499,151.298]
[1772651004979,9.3259686,92.632,92.49,151.313]
[1772651005180,9.3259686,92.615,92.481,151.328]
[1772651005381,9.3259686,92.679,92.536,151.238]
[1772651005586,9.3259686,92.679,92.521,151.263]
[1772651005783,9.3259686,92.65,92.504,151.291]
[1772651005982,9.3259686,92.65,92.554,9.72]
[1772651006180,9.3259686,92.65,92.502,151.294]
[1772651006384,9.36790105,92.634,92.469,151.347]
[1772651006582,9.36790105,92.634,92.467,151.351]
[1772651006788,9.36790105,92.634,92.459,151.365]
[1772651006986,9.36790105,92.598,92.468,151.35]
[1772651007281,9.36790105,92.598,92.438,151.399]
[1772651007481,151.082,92.633,92.444,151.389]
[1772651007482,9.36790105,92.581,92.444,151.389]
[1772651008085,9.36790105,92.577,92.491,9.727]
[1772651008282,9.36790105,92.577,92.432,151.409]
[1772651008482,9.33265394,92.571,92.474,9.729]
[1772651009288,9.33265394,92.566,92.486,9.727]
[1772651009787,9.33265394,92.566,92.427,151.416]
[1772651010184,9.33265394,92.566,92.418,151.431]
[1772651010388,9.33173346,92.563,92.489,9.727]
[1772651010789,9.33173346,92.563,92.429,151.413]
[1772651010989,9.33173346,92.561,92.476,9.728]
[1772651011190,9.33173346,92.561,92.407,151.45]
[1772651012385,9.721,92.543,92.464,9.73]
[1772651012584,9.30971158,92.542,92.464,9.73]
[1772651013189,9.30971158,92.565,92.489,9.727]
[1772651013385,9.30971158,92.565,92.449,151.381]
[1772651013889,9.30971158,92.565,92.497,9.726]
[1772651014287,9.30971158,92.565,92.438,19.465]
[1772651014794,9.30549102,92.552,92.475,9.728]
[1772651015395,9.30549102,92.538,92.404,19.472]
[1772651016397,9.3367099,92.521,92.439,9.732]
[1772651017099,9.3367099,92.514,92.439,9.732]
[1772651018301,9.3367099,92.514,92.449,9.731]
[1772651018496,9.3367099,92.514,92.397,151.466]
[1772651019201,9.3367099,92.514,92.448,9.731]
[1772651020297,9.3167813,92.512,92.438,9.732]
[1772651020998,124.0,92.56,92.447,9.731]
[1772651020999,9.3167813,92.507,92.447,9.731]
[1772651021901,9.3167813,92.495,92.39,9.63545746]
[1772651022094,9.3167813,92.495,92.381,9.63545746]
[1772651022296,9.3167813,92.495,92.382,9.63545746]
[1772651022605,9.3130989,92.515,92.443,9.732]
[1772651022807,9.3130989,92.559,92.415,151.437]
[1772651023100,9.3130989,92.535,92.413,9.63545746]
[1772651023300,9.3130989,92.535,92.409,9.63545746]
[1772651023504,9.725,92.51,92.445,9.732]
[1772651023705,9.3130989,92.51,92.383,9.63545746]
[1772651024099,9.44191904,92.582,92.395,9.63545746]
[1772651024304,9.44191904,92.582,92.457,9.63545746]
[1772651024497,9.44191904,92.582,92.429,9.63545746]
[1772651024702,9.44191904,92.582,92.419,9.63545746]
[1772651024905,9.44191904,92.544,92.474,9.728]
[1772651025408,9.44191904,92.544,92.42,19.469]
[1772651025606,9.44191904,92.543,92.414,9.63545746]
[1772651025806,9.44191904,92.543,92.419,9.63545746]
[1772651026307,9.85214593,92.54,92.475,9.728]
[1772651026506,9.85214593,92.54,92.422,9.63545746]
[1772651026709,9.85214593,92.54,92.477,9.728]
[1772651027401,9.85214593,92.538,92.465,9.729]
[1772651027801,9.85214593,92.529,92.452,9.731]
[1772651029302,9.8506076,92.521,92.461,9.73]
[1772651029904,9.8506076,92.517,92.45,9.731]
[1772651030300,151.173,92.577,92.45,9.731]
[1772651030301,9.8184029,92.504,92.45,9.731]
[1772651030810,9.8184029,92.504,92.382,151.491]
[1772651030811,9.8184029,92.501,92.405,9.77770805]
[1772651031015,9.8184029,92.501,92.396,9.77770805]
[1772651031207,9.8184029,92.501,92.39,9.77770805]
[1772651031710,9.8184029,92.49,92.42,9.734]
[1772651032510,9.81664225,92.482,92.42,9.734]
[1772651032709,9.81664225,92.482,92.429,9.733]
[1772651033809,9.81664225,92.482,92.418,9.734]
[1772651034211,9.78329988,92.481,92.398,9.77770805]
[1772651034414,9.78329988,92.481,92.394,9.77770805]
[1772651034606,9.78329988,92.481,92.393,9.77770805]
[1772651035207,9.78329988,92.481,92.395,9.77770805]
[1772651035411,151.249,92.53,92.352,19.483]
[1772651035412,9.78329988,92.467,92.4,9.736]
[1772651035611,9.78329988,92.467,92.391,9.77770805]
[1772651035812,9.78329988,92.467,92.386,9.77770805]
[1772651036513,9.78329988,92.467,92.387,9.77770805]
[1772651036712,19.45,92.508,92.38,9.77770805]
[1772651036713,9.7718706,92.452,92.38,9.77770805]
[1772651036909,9.7718706,92.452,92.375,9.77770805]
[1772651037110,9.7718706,92.452,92.378,9.77770805]
[1772651037312,19.5028706,92.45,92.389,9.738]
[1772651037515,9.7718706,92.449,92.374,9.77770805]
[1772651037815,9.7718706,92.42,92.355,9.741]
[1772651038005,9.7718706,92.42,92.341,9.83653485]
[1772651038206,9.7718706,92.42,92.282,151.654]
[1772651038207,9.7718706,92.42,92.331,9.83653485]
[1772651038408,9.7718706,92.42,92.326,9.83653485]
[1772651038607,9.7718706,92.42,92.321,9.83653485]
[1772651038808,9.76567806,92.403,92.334,9.743]
[1772651039606,9.76567806,92.403,92.344,9.742]
[1772651039811,9.76567806,92.403,92.307,9.83653485]
[1772651040016,9.76567806,92.403,92.305,9.83653485]
[1772651040317,9.76567806,92.403,92.304,9.83653485]
[1772651040511,9.76567806,92.403,92.307,9.83653485]
[1772651040713,9.76567806,92.403,92.304,9.83653485]
[1772651041014,9.71162305,92.469,92.311,9.83653485]
[1772651041315,9.71162305,92.452,92.3,9.83653485]
[1772651041618,9.71162305,92.389,92.33,9.744]
[1772651041918,9.71162305,92.389,92.288,9.83653485]
[1772651042311,9.71162305,92.389,92.284,9.80171481]
[1772651042513,9.71162305,92.389,92.338,9.743]
[1772651042719,19.463,92.451,92.292,9.80171481]
[1772651042720,9.68173421,92.45,92.292,9.80171481]
[1772651043018,9.68173421,92.45,92.291,19.496]
[1772651043218,9.68173421,92.399,92.336,9.743]
[1772651043419,9.68173421,92.419,92.309,151.609]
[1772651043718,9.68173421,92.419,92.309,9.80171481]
[1772651044017,9.68173421,92.419,92.31,19.492]
[1772651044211,9.68173421,92.419,92.307,9.80171481]
[1772651044418,9.68173421,92.419,92.308,151.611]
[1772651044616,9.68173421,92.419,92.311,19.492]
[1772651045214,9.68173421,92.419,92.363,9.74]
[1772651046216,9.66275019,92.44,92.386,9.738]
[1772651046913,9.66275019,92.44,92.376,9.739]
[1772651047315,9.66275019,92.44,92.386,9.738]
[1772651047915,9.66275019,92.44,92.332,19.487]
[1772651048121,9.66275019,92.44,92.304,9.80171481]
[1772651048315,9.66275019,92.44,92.305,9.80171481]
[1772651048514,9.66001081,92.422,92.314,19.491]
[1772651048812,9.66001081,92.422,92.288,9.80171481]
[1772651049016,9.66001081,92.391,92.287,151.647]
[1772651049215,9.66001081,92.391,92.292,9.80171481]
[1772651049520,9.66001081,92.391,92.294,9.80171481]
[1772651049913,9.66001081,92.391,92.355,9.741]
[1772651050421,9.664543,92.452,92.355,9.741]
[1772651050623,9.664543,92.415,92.355,9.741]
[1772651051023,9.664543,92.415,92.307,151.613]
[1772651051319,9.664543,92.415,92.31,9.80171481]
[1772651051724,9.664543,92.411,92.312,19.492]
[1772651052520,9.66503172,92.41,92.353,9.741]
[1772651052717,9.66503172,92.41,92.307,9.80171481]
[1772651052920,9.66503172,92.41,92.289,9.80171481]
[1772651053121,9.66503172,92.397,92.288,29.29871481]
[1772651053317,9.66503172,92.397,92.288,19.497]
[1772651053721,9.66503172,92.381,92.28,9.80171481]
[1772651053920,9.66503172,92.381,92.256,9.80171481]
[1772651054217,9.67801577,92.36,92.301,9.747]
[1772651054615,9.67801577,92.36,92.259,9.80171481]
[1772651054814,9.67801577,92.36,92.24,151.723]
[1772651054815,9.67801577,92.36,92.26,19.503]
[1772651055217,9.67801577,92.36,92.266,9.80171481]
[1772651055423,9.67801577,92.36,92.264,29.30371481]
[1772651055618,9.67801577,92.36,92.264,19.502]
[1772651056320,9.67801577,92.36,92.308,9.746]
[1772651056815,9.67801577,92.36,92.298,9.747]
[1772651057619,9.67979179,92.356,92.241,9.80171481]
[1772651057818,9.67979179,92.356,92.239,29.30871481]
[1772651058019,9.68022921,92.343,92.289,9.748]
[1772651058823,9.68022921,92.341,92.279,9.749]
[1772651059017,9.68022921,92.341,92.242,9.80171481]
[1772651059416,9.68022921,92.341,92.247,19.505]
[1772651059616,9.68038777,92.362,92.25,9.80171481]
[1772651059918,9.68038777,92.362,92.246,151.714]
[1772651059919,9.68038777,92.362,92.251,9.80171481]
[1772651060118,9.68038777,92.362,92.254,19.504]
[1772651060319,9.68038777,92.362,92.256,151.697]
[1772651060820,9.68038777,92.362,92.317,9.745]
[1772651061019,9.68038777,92.362,92.273,9.8237977]
[1772651061221,9.68038777,92.362,92.247,9.8237977]
[1772651061416,9.68038777,92.362,92.259,19.503]
[1772651061918,9.68038777,92.362,92.253,151.702]
[1772651062123,9.68038777,92.362,92.247,9.8237977]
[1772651062318,9.68038777,92.362,92.239,151.726]
[1772651062525,9.68038777,92.362,92.246,151.713]
[1772651062725,9.68038777,92.362,92.254,19.504]
[1772651064129,9.68038777,92.362,92.25,151.707]
[1772651064426,9.68038777,92.362,92.244,9.8237977]
[1772651064620,9.68038777,92.362,92.305,9.746]
[1772651064825,9.68038777,92.362,92.261,151.689]
[1772651065026,9.68639372,92.36,92.246,9.8237977]
[1772651065327,9.68639372,92.36,92.234,9.8237977]
[1772651065626,9.68639372,92.36,92.238,161.5507977]
[1772651066025,9.68639372,92.36,92.238,151.727]
[1772651066524,9.68639372,92.36,92.298,9.747]
[1772651066719,151.433,92.418,92.247,19.505]
[1772651066921,9.67019604,92.41,92.293,19.496]
[1772651067122,9.67019604,92.41,92.277,151.663]
[1772651067528,9.67019604,92.404,92.343,9.742]
[1772651067724,9.67019604,92.404,92.277,151.663]
[1772651067928,9.67019604,92.404,92.287,151.647]
[1772651068223,9.67019604,92.404,92.3,151.624]
[1772651068425,9.67019604,92.404,92.31,151.609]
[1772651069128,9.67019604,92.404,92.292,151.638]
[1772651069129,9.67019604,92.404,92.325,19.489]
[1772651069525,9.67019604,92.404,92.305,151.617]
[1772651069727,19.447,92.524,92.348,151.546]
[1772651070028,151.2,92.56,92.336,151.566]
[1772651070029,151.223,92.546,92.359,151.528]
[1772651070223,151.223,92.546,92.35,151.543]
[1772651070224,9.727,92.49,92.37,19.479]
[1772651070629,151.237,92.537,92.37,19.479]
[1772651070830,9.728,92.477,92.406,9.736]
[1772651071035,151.282,92.51,92.343,19.485]
[1772651071226,151.282,92.51,92.333,259.89933737]
[1772651071227,151.273,92.516,92.333,259.89933737]
[1772651071427,9.73,92.456,92.334,19.487]
[1772651071635,4.72269302,92.455,92.333,259.89933737]
[1772651072034,4.72269302,92.452,92.336,19.487]
[1772651072530,4.72269302,92.452,92.333,259.89933737]
[1772651072531,4.81675057,92.427,92.366,9.74]
[1772651072932,4.81675057,92.427,92.308,19.493]
[1772651073134,0.00075057,92.455,92.382,3.15870654]
[1772651073334,151.169,92.579,92.392,3.15870654]
[1772651073539,151.187,92.568,92.392,3.15870654]
[1772651073740,9.724,92.519,92.451,9.731]
[1772651074035,9.724,92.519,92.413,3.15870654]
[1772651074228,9.95919372,92.589,92.397,151.466]
[1772651074229,9.95919372,92.601,92.426,3.12580582]
[1772651074433,151.119,92.61,92.426,3.12580582]
[1772651074630,19.427,92.622,92.443,3.12580582]
[1772651074935,19.427,92.622,92.438,151.399]
[1772651074936,151.046,92.655,92.425,151.421]
[1772651074937,151.117,92.611,92.454,3.12580582]
[1772651075139,3.71754305,92.599,92.454,3.12580582]
[1772651075942,3.71754305,92.553,92.474,9.728]
[1772651076240,3.71754305,92.553,92.433,3.19133577]
[1772651076637,3.71754305,92.59,92.498,3.19133577]
[1772651077037,3.71754305,92.59,92.452,3.19133577]
[1772651077738,3.71754305,92.577,92.496,9.726]
[1772651078341,3.71754305,92.575,92.496,9.726]
[1772651078537,3.71754305,92.575,92.475,3.19133577]
[1772651079043,3.71754305,92.57,92.475,3.19133577]
[1772651079246,3.71754305,92.6,92.505,3.18184468]
[1772651080337,3.71754305,92.597,92.505,3.18184468]
[1772651081542,3.71754305,92.592,92.509,9.725]
[1772651082039,3.71754305,92.588,92.509,9.725]
[1772651082241,3.71754305,92.588,92.505,3.18184468]
[1772651082741,3.71754305,92.588,92.496,9.726]
[1772651083537,3.71754305,92.578,92.502,3.16905359]
[1772651084544,3.71754305,92.578,92.506,3.18591282]
[1772651086547,3.71754305,92.573,92.433,3.21679496]
[1772651087042,3.71754305,92.537,92.436,3.21679496]
[1772651087439,13.44254305,92.508,92.436,3.21679496]
[1772651087644,151.194,92.564,92.436,3.21679496]
[1772651087645,3.71754305,92.507,92.436,3.21679496]
[1772651088548,9.726,92.501,92.436,3.21679496]
[1772651088745,3.71754305,92.507,92.436,3.21679496]
[1772651090647,3.71754305,92.507,92.438,9.732]
[1772651091049,13.44254305,92.507,92.438,9.732]
[1772651091249,3.97975126,92.506,92.427,9.733]
[1772651092346,9.725,92.505,92.427,9.733]
[1772651092553,3.97975126,92.504,92.427,9.733]
[1772651092952,3.97975126,92.504,92.437,9.732]
[1772651093351,3.97975126,92.502,92.437,9.732]
[1772651095857,3.97975126,92.529,92.441,3.25650984]
[1772651096757,3.97975126,92.506,92.435,9.733]
[1772651097057,3.97975126,92.506,92.421,3.26333701]
[1772651098049,3.97975126,92.503,92.434,9.733]
[1772651099261,3.97975126,92.503,92.352,9.8237977]
[1772651099262,3.97975126,92.479,92.401,3.26206215]
[1772651099563,3.97975126,92.479,92.358,3.26206215]
[1772651100355,3.97975126,92.451,92.358,3.26206215]
[1772651101363,9.732,92.439,92.379,9.738]
[1772651102058,3.97975126,92.435,92.369,9.74]
[1772651102262,3.97975126,92.435,92.358,3.26206215]
[1772651102466,3.97975126,92.435,92.338,3.39126308]
[1772651102661,3.97975126,92.405,92.34,9.743]
[1772651102964,3.97975126,92.405,92.338,3.39126308]
[1772651104462,3.97975126,92.405,92.348,9.742]
[1772651104859,3.97975126,92.405,92.338,3.39126308]
[1772651104860,3.97975126,92.465,92.356,9.741]
[1772651105060,3.97975126,92.465,92.338,3.39126308]
[1772651105766,3.97975126,92.417,92.338,3.39126308]
[1772651107263,3.97975126,92.435,92.338,3.39126308]
[1772651107972,9.731,92.454,92.387,9.738]
[1772651108564,13.71075126,92.454,92.387,9.738]
[1772651109064,13.71075126,92.454,92.396,9.737]
[1772651109270,3.97975126,92.454,92.378,3.38296169]
[1772651109666,3.97975126,92.475,92.4,3.41191985]
[1772651109863,3.97975126,92.544,92.4,3.41191985]
[1772651110371,9.728,92.478,92.417,9.734]
[1772651110569,9.728,92.478,92.4,3.41191985]
[1772651110570,3.97975126,92.487,92.4,3.41191985]
[1772651110765,3.97975126,92.487,92.424,3.45705481]
[1772651111268,0.00075126,92.487,92.442,9.732]
[1772651111972,19.44,92.558,92.452,9.731]
[1772651112169,19.44,92.558,92.424,3.45705481]
[1772651112968,9.95919372,92.603,92.424,3.45705481]
[1772651112969,19.434,92.588,92.424,3.45705481]
[1772651113168,3.97975126,92.587,92.44,3.73104414]
[1772651113373,3.97975126,92.55,92.469,3.73104414]
[1772651113874,3.97975126,92.55,92.484,9.727]
[1772651114768,124.0,92.63,92.438,19.465]
[1772651114769,3.97975126,92.615,92.496,3.73104414]
[1772651115774,9.716,92.592,92.518,9.724]
[1772651115974,3.97975126,92.615,92.519,3.73104414]
[1772651116973,3.97975126,92.599,92.477,3.73104414]
[1772651117471,9.716,92.591,92.509,3.73104414]
[1772651117676,3.97975126,92.599,92.509,3.73104414]
[1772651117878,9.717,92.58,92.509,3.73104414]
[1772651118075,3.97975126,92.58,92.509,3.73104414]
[1772651118274,3.97975126,92.58,92.456,3.73104414]
[1772651118868,3.97975126,92.58,92.51,3.75303733]
[1772651119068,3.62422392,92.624,92.51,3.75303733]
[1772651119576,9.719,92.565,92.51,3.75303733]
[1772651119778,3.62422392,92.564,92.489,3.75303733]
[1772651120178,3.62422392,92.562,92.477,3.75303733]
[1772651120576,3.62422392,92.618,92.477,3.75303733]
[1772651120880,9.718,92.571,92.491,3.75303733]
[1772651121171,3.62422392,92.574,92.494,3.75303733]
[1772651122080,9.719,92.568,92.494,3.75303733]
[1772651122380,3.62422392,92.635,92.497,3.75303733]
[1772651122677,3.62422392,92.656,92.497,3.75303733]
[1772651122979,3.62422392,92.656,92.577,3.75303733]
[1772651123480,3.62422392,92.71,92.577,3.75303733]
[1772651123873,3.62422392,92.669,92.577,3.75303733]
[1772651124575,3.62422392,92.667,92.58,3.75303733]
[1772651125081,9.71,92.654,92.58,3.75303733]
[1772651125477,13.33222392,92.667,92.593,3.75303733]
[1772651125878,9.708,92.667,92.593,3.75303733]
[1772651126079,3.79394429,92.714,92.631,3.79236804]
[1772651126577,9.69929258,92.715,92.631,3.79236804]
[1772651126779,9.69929258,92.715,92.644,3.79236804]
[1772651127178,3.79394429,92.714,92.623,3.79236804]
[1772651127375,3.79394429,92.71,92.623,3.79236804]
[1772651127881,3.79394429,92.71,92.625,3.79236804]
[1772651128276,3.79394429,92.71,92.629,3.79236804]
[1772651128577,3.79394429,92.71,92.561,3.79236804]
[1772651128983,3.79394429,92.692,92.598,3.79236804]
[1772651129583,3.79394429,92.692,92.599,3.79236804]
[1772651130187,3.79394429,92.692,92.612,9.714]
[1772651130387,3.79394429,92.692,92.599,3.79236804]
[1772651130881,3.79394429,92.688,92.599,3.79236804]
[1772651131083,3.79394429,92.714,92.599,3.79236804]
[1772651131585,3.79394429,92.714,92.639,3.79236804]
[1772651131784,3.79394429,92.714,92.572,3.79236804]
[1772651131982,13.49994429,92.686,92.603,3.79236804]
[1772651132182,3.79394429,92.714,92.603,3.79236804]
[1772651132785,3.79394429,92.713,92.617,3.79236804]
[1772651133485,3.79394429,92.695,92.617,3.79236804]
[1772651134084,9.69929258,92.715,92.619,3.79236804]
[1772651134286,3.79394429,92.714,92.619,3.79236804]
[1772651135081,3.79394429,92.714,92.635,3.79236804]
[1772651135589,3.79394429,92.698,92.606,3.79236804]
[1772651136487,3.79394429,92.698,92.584,3.79236804]
[1772651136879,3.79394429,92.673,92.586,3.79236804]
[1772651137088,3.79394429,92.714,92.586,3.79236804]
[1772651137479,3.79394429,92.69,92.586,3.79236804]
[1772651138090,3.79394429,92.678,92.586,3.79236804]
[1772651138582,3.79394429,92.676,92.586,3.79236804]
[1772651139186,3.79394429,92.674,92.6,9.715]
[1772651139392,3.79394429,92.674,92.586,3.79236804]
[1772651140292,9.69929258,92.715,92.586,3.79236804]
[1772651140293,3.79394429,92.667,92.586,3.79236804]
[1772651140983,9.69929258,92.715,92.518,151.267]
[1772651140984,3.79394429,92.664,92.565,3.79236804]
[1772651141487,9.709,92.657,92.565,3.79236804]
[1772651141888,3.79394429,92.664,92.565,3.79236804]
[1772651142083,9.69929258,92.715,92.538,151.235]
[1772651142084,9.69929258,92.715,92.595,3.79236804]
[1772651142286,3.79394429,92.714,92.595,3.79236804]
[1772651142791,13.50094429,92.681,92.62,9.713]
[1772651143192,13.50094429,92.681,92.608,9.714]
[1772651143593,13.50094429,92.681,92.595,3.79236804]
[1772651143892,3.79394429,92.667,92.595,3.79236804]
[1772651144288,3.79394429,92.689,92.595,3.79236804]
[1772651144491,3.79394429,92.689,92.627,9.712]
[1772651144692,3.79394429,92.71,92.618,3.79236804]
[1772651145084,9.69929258,92.715,92.618,3.79236804]
[1772651145290,9.69929258,92.715,92.651,3.79236804]
[1772651145691,3.79394429,92.714,92.63,3.79236804]
[1772651145991,9.69929258,92.715,92.63,3.79236804]
[1772651145992,3.79394429,92.713,92.63,3.79236804]
[1772651146196,3.79394429,92.713,92.608,3.79236804]
[1772651146500,3.79394429,92.683,92.608,13.50636804]
[1772651146699,3.79394429,92.683,92.608,3.79236804]
[1772651147897,3.79394429,92.683,92.55,3.79236804]
[1772651148095,3.79394429,92.679,92.581,3.79236804]
[1772651148497,3.79394429,92.679,92.587,9.717]
[1772651148692,9.69929258,92.715,92.581,3.79236804]
[1772651148693,3.62178242,92.659,92.581,3.79236804]
[1772651148994,3.62178242,92.652,92.582,9.717]
[1772651150193,7.18961407,92.7,92.531,264.24205553]
[1772651150194,3.62178242,92.639,92.559,3.83425803]
[1772651150594,19.41,92.699,92.55,7.18961407]
[1772651150595,3.62178242,92.659,92.569,3.83425803]
[1772651151293,9.711,92.64,92.569,13.55325803]
[1772651151798,3.62178242,92.631,92.558,9.72]
[1772651152193,3.62178242,92.631,92.547,3.83425803]
[1772651152396,3.62178242,92.605,92.531,264.24205553]
[1772651152591,3.62178242,92.599,92.531,264.24205553]
[1772651152991,3.62178242,92.599,92.503,3.83425803]
[1772651153192,7.18961407,92.58,92.503,3.83425803]
[1772651153393,3.62178242,92.609,92.511,3.83425803]
[1772651153898,3.62178242,92.588,92.511,3.83425803]
[1772651154295,9.717,92.586,92.514,3.83425803]
[1772651154501,3.62178242,92.588,92.514,3.83425803]
[1772651154891,3.62178242,92.588,92.5,7.18961407]
[1772651155094,3.62178242,92.568,92.492,3.83425803]
[1772651155494,3.62178242,92.568,92.425,19.468]
[1772651155495,3.62178242,92.555,92.436,3.83425803]
[1772651155692,3.62178242,92.555,92.461,3.83425803]
[1772651156498,9.721,92.542,92.471,9.729]
[1772651157098,9.721,92.542,92.461,3.83425803]
[1772651157899,9.721,92.542,92.464,9.73]
[1772651158104,9.721,92.542,92.465,3.83425803]
[1772651159104,7.18961407,92.56,92.465,3.83425803]
[1772651159105,3.62178242,92.554,92.47,7.18961407]
[1772651159700,3.62178242,92.551,92.465,3.83425803]
[1772651159903,3.62178242,92.539,92.45,7.18961407]
[1772651160809,3.62178242,92.539,92.451,3.83425803]
[1772651161308,7.18961407,92.56,92.474,3.83425803]
[1772651161309,3.62178242,92.559,92.474,3.83425803]